bitfinex-derivatives/quotes_BTCF0:USTF0_20250827
["timestamp","ask_amount","ask_price","bid_price","bid_amount"]
[1756252802785,0.003,111810.0,111800.0,0.50857]
[1756252803390,0.003,111810.0,111800.0,0.14777]
[1756252803695,0.0924223,111810.0,111800.0,0.14777]
[1756252805289,0.9173023,111810.0,111800.0,0.14777]
[1756252811696,1.2781023,111810.0,111800.0,0.14777]
[1756252812603,0.9173023,111810.0,111800.0,0.14777]
[1756252813307,0.0924223,111810.0,111800.0,0.14777]
[1756252813510,0.9165823,111810.0,111800.0,0.14777]
[1756252814203,0.0924223,111810.0,111800.0,0.14777]
[1756252814396,0.9165823,111810.0,111800.0,0.14777]
[1756252817811,0.0924223,111810.0,111800.0,0.14777]
[1756252818012,0.9165423,111810.0,111800.0,0.14777]
[1756252821612,1.2773423,111810.0,111800.0,0.04556]
[1756252821812,1.2773423,111810.0,111800.0,0.04551]
[1756252822009,1.2773423,111810.0,111800.0,0.02795]
[1756252822205,1.5273423,111810.0,111800.0,0.02795]
[1756252822812,0.0894379,111790.0,111780.0,0.47956]
[1756252823008,0.9134379,111790.0,111780.0,0.50678]
[1756252824108,0.9134379,111790.0,111780.0,0.50778]
[1756252825115,0.0894379,111790.0,111780.0,0.50778]
[1756252825317,0.9134379,111790.0,111780.0,0.50878]
[1756252825517,0.9134379,111790.0,111780.0,0.14798]
[1756252825815,0.9134379,111790.0,111780.0,0.50878]
[1756252826011,0.9144379,111790.0,111780.0,0.50778]
[1756252826709,0.9144379,111790.0,111780.0,0.50678]
[1756252826911,0.0904379,111790.0,111780.0,0.50678]
[1756252827218,0.9143979,111790.0,111780.0,0.50678]
[1756252827809,1.2751979,111790.0,111780.0,0.11201]
[1756252828115,1.2751979,111790.0,111780.0,0.14598]
[1756252829618,0.4512379,111790.0,111780.0,0.14598]
[1756252829920,1.2751579,111790.0,111780.0,0.14598]
[1756252830623,0.4512379,111790.0,111780.0,0.14598]
[1756252830923,1.2751979,111790.0,111780.0,0.14598]
[1756252831330,1.2751979,111790.0,111780.0,0.08572]
[1756252831628,1.29484073,111790.0,111780.0,0.14598]
[1756252833320,1.29484073,111790.0,111780.0,0.08572]
[1756252833523,1.29484073,111790.0,111780.0,0.02722]
[1756252833721,0.47088073,111790.0,111780.0,0.06755]
[1756252833920,1.29484073,111790.0,111780.0,0.06755]
[1756252834824,1.29484073,111790.0,111780.0,0.10152]
[1756252835020,0.47088073,111790.0,111780.0,0.10152]
[1756252835229,1.29480073,111790.0,111780.0,0.14598]
[1756252838026,0.47088073,111790.0,111780.0,0.14598]
[1756252838224,1.29480073,111790.0,111780.0,0.14598]
[1756252839428,1.29480073,111790.0,111780.0,0.08572]
[1756252839627,1.29480073,111790.0,111780.0,0.04478]
[1756252839927,1.29480073,111790.0,111780.0,0.02722]
[1756252843329,1.29476073,111790.0,111780.0,0.14666]
[1756252843530,1.29476073,111790.0,111780.0,0.12004]
[1756252843724,1.29476073,111790.0,111780.0,0.08668]
[1756252843929,1.29476073,111790.0,111780.0,0.12004]
[1756252845225,1.29476073,111790.0,111780.0,0.08668]
[1756252845431,1.29476073,111790.0,111780.0,0.06846]
[1756252848337,0.47088073,111790.0,111780.0,0.06846]
[1756252848532,1.29472073,111790.0,111780.0,0.06846]
[1756252851134,1.29472073,111790.0,111780.0,0.02722]
[1756252851632,1.29472073,111790.0,111780.0,0.04536]
[1756252853234,1.29472073,111790.0,111780.0,0.06846]
[1756252853937,1.29472073,111790.0,111780.0,0.02722]
[1756252854138,1.29472073,111790.0,111780.0,0.04536]
[1756252855538,1.29472073,111790.0,111780.0,0.06846]
[1756252858035,1.29472073,111790.0,111780.0,0.04536]
[1756252858340,1.29472073,111790.0,111780.0,0.02722]
[1756252860746,1.29472073,111790.0,111780.0,0.06846]
[1756252861545,1.29627806,111790.0,111780.0,0.06846]
[1756252862943,1.29627806,111790.0,111780.0,0.02722]
[1756252865154,1.29627806,111790.0,111780.0,0.14666]
[1756252865351,1.29627806,111790.0,111780.0,0.06846]
[1756252865648,1.29627806,111790.0,111780.0,0.02722]
[1756252865848,0.0894536,111780.0,111760.0,0.5696976]
[1756252866054,0.8236,111770.0,111760.0,0.2386776]
[1756252866349,0.93277274,111770.0,111760.0,0.11586]
[1756252866554,0.93277274,111770.0,111760.0,0.27655252]
[1756252866950,0.93277274,111770.0,111760.0,0.39937512]
[1756252867152,0.93277274,111770.0,111760.0,0.40137512]
[1756252867352,0.93477274,111770.0,111760.0,0.2406826]
[1756252867555,0.93477274,111770.0,111760.0,0.15122]
[1756252868254,1.29557274,111770.0,111760.0,0.11786]
[1756252868450,1.37077273,111770.0,111760.0,0.11786]
[1756252868645,1.37077273,111770.0,111760.0,0.09124]
[1756252869049,1.37077273,111770.0,111760.0,0.03178]
[1756252869357,1.37077273,111770.0,111760.0,0.002]
[1756252869559,1.62077273,111770.0,111760.0,0.002]
[1756252870259,1.62077273,111770.0,111760.0,0.03016]
[1756252870557,1.62077273,111770.0,111760.0,0.02816]
[1756252870758,1.62077273,111770.0,111760.0,0.02916]
[1756252871761,0.79717273,111770.0,111760.0,0.02916]
[1756252871964,1.62077273,111770.0,111760.0,0.02916]
[1756252872154,1.62077273,111770.0,111760.0,0.001]
[1756252873163,0.0894786,111740.0,111730.0,0.60944252]
[1756252873360,1.2782786,111740.0,111730.0,0.28096252]
[1756252873862,1.2782786,111740.0,111730.0,0.14843]
[1756252874262,0.3608,111740.0,111730.0,0.2379166]
[1756252874463,1.2052712,111740.0,111730.0,0.2379166]
[1756252875162,1.2052712,111740.0,111730.0,0.2399166]
[1756252875555,1.2062712,111740.0,111730.0,0.2399166]
[1756252876160,1.2957498,111740.0,111730.0,0.2399166]
[1756252876765,1.2957498,111740.0,111730.0,0.15043]
[1756252877161,1.2957498,111740.0,111730.0,0.2399166]
[1756252878354,1.2951098,111740.0,111730.0,0.2399166]
[1756252878967,1.2951098,111740.0,111730.0,0.15043]
[1756252879859,1.2951098,111740.0,111730.0,0.07193]
[1756252880064,1.2951098,111740.0,111730.0,0.15043]
[1756252882161,1.2951098,111740.0,111730.0,0.12325]
[1756252882368,1.2951098,111740.0,111730.0,0.15043]
[1756252882966,0.9413998,111740.0,111730.0,0.13043]
[1756252883168,0.9458298,111740.0,111730.0,0.14888]
[1756252887669,0.1186698,111740.0,111730.0,0.14888]
[1756252887868,0.9527898,111740.0,111730.0,0.14888]
[1756252888968,0.9527898,111740.0,111730.0,0.2383665]
[1756252889570,0.1186698,111740.0,111730.0,0.2383665]
[1756252889773,0.9523898,111740.0,111730.0,0.2383665]
[1756252891371,0.9523898,111740.0,111730.0,0.5991665]
[1756252895572,0.9523898,111740.0,111730.0,0.2383665]
[1756252897076,0.0291912,111740.0,111730.0,0.2383665]
[1756252897277,0.8608712,111740.0,111730.0,0.2383665]
[1756252898275,0.9503505,111740.0,111730.0,0.1788673]
[1756252898479,0.9503505,111740.0,111730.0,0.2378173]
[1756252898871,0.9503505,111740.0,111730.0,0.1383373]
[1756252899077,0.8608712,111740.0,111730.0,0.2378873]
[1756252899374,0.8608712,111740.0,111730.0,0.12208]
[1756252899677,0.8608712,111740.0,111730.0,0.1484]
[1756252903381,0.8696712,111740.0,111730.0,0.1484]
[1756252904079,0.8696712,111740.0,111730.0,0.07045]
[1756252904378,0.8696712,111740.0,111730.0,0.14850016]
[1756252907284,0.8696712,111740.0,111730.0,0.23798746]
[1756252907579,0.8696712,111740.0,111730.0,0.17944746]
[1756252907789,0.8696712,111740.0,111730.0,0.23798746]
[1756252909383,0.8696712,111740.0,111730.0,0.14850016]
[1756252910380,0.9591504,111740.0,111730.0,0.14850016]
[1756252910780,0.9591504,111740.0,111730.0,0.12218016]
[1756252911085,0.9591504,111740.0,111730.0,0.14850016]
[1756252912488,0.9591504,111740.0,111730.0,0.12218016]
[1756252912684,0.9591504,111740.0,111730.0,0.08996016]
[1756252912891,0.9591504,111740.0,111730.0,0.14850016]
[1756252914384,0.9591504,111740.0,111730.0,0.08996016]
[1756252914579,0.9591504,111740.0,111730.0,0.14850016]
[1756252915290,0.9591504,111740.0,111730.0,0.23798766]
[1756252915591,0.9601504,111740.0,111730.0,0.23698766]
[1756252915789,0.9601504,111740.0,111730.0,0.12118016]
[1756252915989,0.9601504,111740.0,111730.0,0.14750016]
[1756252917091,0.9601504,111740.0,111730.0,0.23698806]
[1756252918487,0.8706712,111740.0,111730.0,0.23698806]
[1756252919291,0.9601514,111740.0,111730.0,0.23698806]
[1756252919987,0.9601514,111740.0,111730.0,0.08896016]
[1756252920186,0.9601514,111740.0,111730.0,0.14750016]
[1756252920490,0.9601514,111740.0,111730.0,0.23698836]
[1756252925387,0.9601514,111740.0,111730.0,0.11528016]
[1756252925595,0.9601514,111740.0,111730.0,0.21066836]
[1756252926093,0.9601514,111740.0,111730.0,0.02926016]
[1756252926299,0.9601514,111740.0,111730.0,0.14750016]
[1756252928593,0.0894883,111730.0,111720.0,0.00996208]
[1756252928796,0.1105963,111720.0,111710.0,0.03571]
[1756252928991,1.3152363,111720.0,111710.0,0.03571]
[1756252929593,1.3152363,111720.0,111710.0,0.06889]
[1756252929794,1.22574,111720.0,111710.0,0.06889]
[1756252929994,1.22598,111720.0,111710.0,0.06889]
[1756252930197,1.22598,111720.0,111710.0,0.11414]
[1756252930396,1.22598,111720.0,111710.0,0.08767]
[1756252930597,1.22598,111720.0,111710.0,0.11414]
[1756252930798,1.22598,111720.0,111710.0,0.14323]
[1756252930998,1.22598,111720.0,111710.0,0.2327344]
[1756252931600,1.22598,111720.0,111710.0,0.2337344]
[1756252932198,1.22598,111720.0,111710.0,0.2347344]
[1756252932199,0.3819,111720.0,111710.0,0.2347344]
[1756252932899,0.86562,111720.0,111710.0,0.2347344]
[1756252934897,1.3159202,111720.0,111710.0,0.11876]
[1756252935106,1.3159202,111720.0,111710.0,0.002]
[1756252935297,1.5659202,111720.0,111710.0,0.002]
[1756252935502,0.1213597,111700.0,111690.0,0.23079252]
[1756252935704,1.31344879,111700.0,111690.0,0.32032022]
[1756252935907,1.31344879,111700.0,111690.0,0.1928077]
[1756252936198,1.31344879,111700.0,111690.0,0.2380577]
[1756252936596,1.31444879,111700.0,111690.0,0.2380577]
[1756252939400,0.37908909,111700.0,111690.0,0.02909]
[1756252939605,1.31396949,111700.0,111690.0,0.02909]
[1756252940309,1.28372342,111700.0,111690.0,0.2048784]
[1756252940496,1.37324382,111700.0,111690.0,0.14853]
[1756252941706,0.52792382,111700.0,111690.0,0.2380584]
[1756252942006,1.37292382,111700.0,111690.0,0.2380584]
[1756252942209,1.37292382,111700.0,111690.0,0.14853]
[1756252942809,1.48945824,111700.0,111690.0,0.14853]
[1756252943102,1.12237915,111700.0,111690.0,0.14853]
[1756252943905,1.03285875,111700.0,111690.0,0.2380579]
[1756252944207,1.12237955,111700.0,111690.0,0.2380579]
[1756252945107,1.12237955,111700.0,111690.0,0.14853]
[1756252945811,1.12237955,111700.0,111690.0,0.12206]
[1756252946002,1.48317955,111700.0,111690.0,0.14853]
[1756252946206,1.48417955,111700.0,111690.0,0.12206]
[1756252946403,1.48417955,111700.0,111690.0,0.08888]
[1756252946600,1.48517955,111700.0,111690.0,0.04701]
[1756252947111,1.48517955,111700.0,111690.0,0.02909]
[1756252948213,1.48517955,111700.0,111690.0,0.04701]
[1756252948512,1.48517955,111700.0,111690.0,0.10328]
[1756252948814,1.48517955,111700.0,111690.0,0.12206]
[1756252949315,1.31283841,111700.0,111690.0,0.12206]
[1756252949514,1.3835708,111700.0,111690.0,0.12206]
[1756252950008,1.3835708,111700.0,111690.0,0.08888]
[1756252950214,1.3835708,111700.0,111690.0,0.14853]
[1756252953317,1.3835708,111700.0,111690.0,0.0701]
[1756252953509,1.3835708,111700.0,111690.0,0.10328]
[1756252953715,1.3835708,111700.0,111690.0,0.14853]
[1756252954512,0.64058761,111700.0,111690.0,0.14853]
[1756252954717,1.48362761,111700.0,111690.0,0.14853]
[1756252956716,1.48362761,111700.0,111690.0,0.08888]
[1756252956919,1.48362761,111700.0,111690.0,0.12206]
[1756252957124,1.48690761,111700.0,111690.0,0.12206]
[1756252957319,1.48690761,111700.0,111690.0,0.0701]
[1756252957620,1.48690761,111700.0,111690.0,0.04701]
[1756252957825,1.48690761,111700.0,111690.0,0.1046]
[1756252958427,1.48690761,111700.0,111690.0,0.15216]
[1756252959624,1.48690761,111700.0,111690.0,0.0698]
[1756252960828,1.48690761,111700.0,111690.0,0.1046]
[1756252961523,1.48514761,111700.0,111690.0,0.15216]
[1756252963631,0.07701239,111700.0,111690.0,0.24169]
[1756252963925,1.36801439,111700.0,111690.0,0.0698]
[1756252964625,1.36801439,111700.0,111690.0,0.1046]
[1756252964829,1.36801439,111700.0,111690.0,0.15216]
[1756252965232,1.37001439,111700.0,111690.0,0.15216]
[1756252966024,1.37201439,111700.0,111690.0,0.15216]
[1756252969035,0.53133439,111700.0,111690.0,0.15216]
[1756252969227,1.37153439,111700.0,111690.0,0.15216]
[1756252972637,1.37153439,111700.0,111690.0,0.08962]
[1756252973032,1.37153439,111700.0,111690.0,0.02909]
[1756252973234,0.092818,111680.0,111670.0,0.11661]
[1756252973532,0.932938,111680.0,111670.0,0.12232]
[1756252974232,0.932938,111680.0,111670.0,0.08752]
[1756252974438,0.95876058,111680.0,111670.0,0.12232]
[1756252974627,0.97881267,111680.0,111670.0,0.12232]
[1756252975339,0.97981267,111680.0,111670.0,0.12232]
[1756252975836,0.97921267,111680.0,111670.0,0.2396061]
[1756252977138,0.13969267,111680.0,111670.0,0.2396061]
[1756252977338,0.97921267,111680.0,111670.0,0.2396061]
[1756252978339,0.13969267,111680.0,111670.0,0.2396061]
[1756252978538,0.97881267,111680.0,111670.0,0.6004061]
[1756252981041,0.97881267,111680.0,111670.0,0.5378661]
[1756252981339,0.97881267,111680.0,111670.0,0.6004061]
[1756252982839,0.97801267,111680.0,111670.0,0.6004061]
[1756252983039,0.97753267,111680.0,111670.0,0.6004061]
[1756252983744,0.97753267,111680.0,111670.0,0.5726661]
[1756252984541,0.97753267,111680.0,111670.0,0.5378661]
[1756252984839,0.97753267,111680.0,111670.0,0.6004061]
[1756252985439,0.13969267,111680.0,111670.0,0.6004061]
[1756252985740,0.13969267,111680.0,111670.0,0.5656061]
[1756252985741,0.97753267,111680.0,111670.0,0.5656061]
[1756252985942,0.97753267,111680.0,111670.0,0.6004061]
[1756252987137,0.13969267,111680.0,111670.0,0.6004061]
[1756252987340,0.88799467,111680.0,111670.0,0.6004061]
[1756252987543,0.88491467,111680.0,111670.0,0.8504061]
[1756252988142,0.90371467,111680.0,111670.0,0.8504061]
[1756252988345,0.90371467,111680.0,111670.0,0.6004061]
[1756252989034,0.93190467,111680.0,111670.0,0.6004061]
[1756252989942,0.86450258,111680.0,111670.0,0.6004061]
[1756252990141,0.88330258,111680.0,111670.0,0.6004061]
[1756252990745,0.02682258,111680.0,111670.0,0.6004061]
[1756252990945,0.74998258,111680.0,111670.0,0.8504061]
[1756252992045,0.86394258,111680.0,111670.0,0.8504061]
[1756252992447,0.88274258,111680.0,111670.0,0.8504061]
[1756252992941,0.91093258,111680.0,111670.0,0.8504061]
[1756252993240,1.00047068,111680.0,111670.0,0.8504061]
[1756252993448,1.00047068,111680.0,111670.0,0.6004061]
[1756252993949,1.00011068,111680.0,111670.0,0.6004061]
[1756252995047,0.16335068,111680.0,111670.0,0.6004061]
[1756252995249,0.99967068,111680.0,111670.0,0.6004061]
[1756252997548,0.07381258,111680.0,111670.0,0.6004061]
[1756252997749,0.91005258,111680.0,111670.0,0.6004061]
[1756252997954,0.99959068,111680.0,111670.0,0.6004061]
[1756252998744,0.99959068,111680.0,111670.0,0.5656061]
[1756252998951,0.99959068,111680.0,111670.0,0.5986061]
[1756253002751,0.99959068,111680.0,111670.0,0.5656061]
[1756253002957,0.99959068,111680.0,111670.0,0.5986061]
[1756253003650,0.99959068,111680.0,111670.0,0.5656061]
[1756253003854,0.99959068,111680.0,111670.0,0.5986061]
[1756253004560,0.99959068,111680.0,111670.0,0.50906]
[1756253004857,0.99959068,111680.0,111670.0,0.14826]
[1756253005254,0.99959068,111680.0,111670.0,0.08752]
[1756253005454,0.99959068,111680.0,111670.0,0.04999]
[1756253005654,0.99959068,111680.0,111670.0,0.0272]
[1756253006056,1.36039068,111680.0,111670.0,0.0272]
[1756253006253,1.36039068,111680.0,111670.0,0.0446]
[1756253006748,0.99883068,111680.0,111670.0,0.06686]
[1756253007060,0.16335068,111680.0,111670.0,0.2093661]
[1756253007252,0.99855068,111680.0,111670.0,0.2356661]
[1756253008156,0.99847068,111680.0,111670.0,0.5964661]
[1756253008754,0.99847068,111680.0,111670.0,0.2356661]
[1756253010960,0.07381258,111680.0,111670.0,0.2356661]
[1756253011160,0.90841258,111680.0,111670.0,0.5964661]
[1756253011356,0.07381258,111680.0,111670.0,0.5964661]
[1756253011551,0.89717258,111680.0,111670.0,0.5964661]
[1756253011755,0.90837258,111680.0,111670.0,0.5964661]
[1756253011960,0.02682258,111680.0,111670.0,0.5964661]
[1756253012159,0.79182258,111680.0,111670.0,0.8464661]
[1756253012360,0.02682258,111680.0,111670.0,0.8464661]
[1756253013261,0.07381258,111680.0,111670.0,0.8464661]
[1756253013561,0.04562258,111680.0,111670.0,0.8464661]
[1756253015856,0.02682258,111680.0,111670.0,0.8464661]
[1756253024861,0.02682258,111680.0,111670.0,0.5964661]
[1756253028465,0.002,111680.0,111670.0,0.5964661]
[1756253030769,0.02466334,111680.0,111670.0,0.5964661]
[1756253032371,0.002,111680.0,111670.0,0.5964661]
[1756253032966,0.02415012,111680.0,111670.0,0.5964661]
[1756253034269,0.20644019,111700.0,111690.0,0.2361601]
[1756253034469,1.04660019,111700.0,111690.0,0.5969601]
[1756253035369,1.04860019,111700.0,111690.0,0.5969601]
[1756253035569,1.05160019,111700.0,111690.0,0.5969601]
[1756253038274,0.21144019,111700.0,111690.0,0.5969601]
[1756253038475,1.07234481,111700.0,111690.0,0.5969601]
[1756253038871,1.07234481,111700.0,111690.0,0.9577601]
[1756253039676,0.23306481,111700.0,111690.0,0.9577601]
[1756253039872,0.95556701,111700.0,111690.0,0.9577601]
[1756253040078,0.95548701,111700.0,111690.0,0.9577601]
[1756253040278,0.95448701,111700.0,111690.0,0.9577601]
[1756253040779,0.98100701,111700.0,111690.0,0.9577601]
[1756253040972,0.14080701,111700.0,111690.0,0.9577601]
[1756253041172,0.09635701,111700.0,111690.0,0.9577601]
[1756253041377,0.09635701,111700.0,111690.0,1.2077601]
[1756253041574,0.09335701,111700.0,111690.0,1.2077601]
[1756253041975,0.07373239,111700.0,111690.0,1.2077601]
[1756253042677,0.07173239,111700.0,111690.0,1.2077601]
[1756253042878,0.03673239,111700.0,111690.0,1.2077601]
[1756253043873,0.03573239,111700.0,111690.0,1.2077601]
[1756253048285,0.03573239,111700.0,111690.0,0.9577601]
[1756253058995,0.05350239,111700.0,111690.0,0.9577601]
[1756253059192,0.03573239,111700.0,111690.0,0.9577601]
[1756253059492,0.71964,111720.0,111710.0,0.1488334]
[1756253059696,0.71964,111720.0,111710.0,0.6004334]
[1756253060591,0.0895092,111720.0,111710.0,0.6004334]
[1756253060795,0.9319492,111720.0,111710.0,0.6004334]
[1756253061096,0.95374551,111720.0,111710.0,0.6004334]
[1756253062198,0.95274551,111720.0,111710.0,0.6004334]
[1756253062792,0.11530551,111720.0,111710.0,0.6004334]
[1756253062994,0.95326551,111720.0,111710.0,0.6004334]
[1756253063297,1.02582537,111720.0,111710.0,0.6004334]
[1756253070307,0.09935617,111720.0,111710.0,0.6004334]
[1756253070708,0.09935617,111720.0,111710.0,0.9612334]
[1756253071020,0.93491617,111720.0,111710.0,0.9612334]
[1756253071608,0.93391617,111720.0,111710.0,0.9612334]
[1756253072403,0.93291617,111720.0,111710.0,0.9612334]
[1756253072803,0.93159617,111720.0,111710.0,0.9612334]
[1756253073005,0.83724,111720.0,111710.0,0.9612334]
[1756253073303,0.83524,111720.0,111710.0,0.9612334]
[1756253073503,0.85452554,111720.0,111710.0,0.9612334]
[1756253074106,0.85416554,111720.0,111710.0,0.9612334]
[1756253075811,0.10909427,111750.0,111740.0,0.12091]
[1756253076004,0.94405427,111750.0,111740.0,0.09425]
[1756253076200,0.94405427,111750.0,111740.0,0.1296388]
[1756253076409,0.94405427,111750.0,111740.0,0.2129488]
[1756253076608,1.01523461,111750.0,111740.0,0.2129488]
[1756253076910,0.0894888,111740.0,111730.0,0.39052]
[1756253077113,0.0911869,111730.0,111720.0,0.1192205]
[1756253077312,0.9268669,111730.0,111720.0,0.1376805]
[1756253077508,0.9268669,111730.0,111720.0,0.4984805]
[1756253077715,0.00065,111710.0,111700.0,0.5178366]
[1756253078014,0.9268029,111710.0,111700.0,0.05946]
[1756253078209,0.9268029,111710.0,111700.0,0.1787009]
[1756253078404,0.9268029,111710.0,111700.0,0.1192409]
[1756253078609,1.2876029,111710.0,111700.0,0.1192409]
[1756253079113,1.2876029,111710.0,111700.0,0.1377009]
[1756253079616,1.2876029,111710.0,111700.0,0.1397009]
[1756253080114,1.30760817,111710.0,111700.0,0.1397009]
[1756253080316,1.30760817,111710.0,111700.0,0.1212409]
[1756253080617,1.55760817,111710.0,111700.0,0.1212409]
[1756253082306,1.55760817,111710.0,111700.0,0.03172]
[1756253083418,1.55760817,111710.0,111700.0,0.1212409]
[1756253084120,1.55760817,111710.0,111700.0,0.03172]
[1756253085320,1.30760817,111710.0,111700.0,0.03172]
[1756253086726,1.55760817,111710.0,111700.0,0.03172]
[1756253089919,1.55556817,111710.0,111700.0,0.03172]
[1756253090823,1.55556817,111710.0,111700.0,0.002]
[1756253092125,0.72400817,111710.0,111700.0,0.001]
[1756253092322,1.55700817,111710.0,111700.0,0.001]
[1756253092522,0.0912109,111700.0,111690.0,0.02972]
[1756253092723,0.4520109,111700.0,111690.0,0.02972]
[1756253093725,0.4550109,111700.0,111690.0,0.02972]
[1756253093923,0.45144433,111700.0,111690.0,0.02972]
[1756253094526,0.45144433,111700.0,111690.0,0.04818]
[1756253100230,0.45144433,111700.0,111690.0,0.12148]
[1756253100534,1.28312433,111700.0,111690.0,0.148]
[1756253103938,0.45144433,111700.0,111690.0,0.148]
[1756253104135,1.28316433,111700.0,111690.0,0.148]
[1756253105029,0.36549,111700.0,111690.0,0.148]
[1756253105226,0.00404,111700.0,111690.0,0.8483245]
[1756253105532,0.83472,111700.0,111690.0,0.8483245]
[1756253106136,0.83673,111700.0,111690.0,0.8483245]
[1756253106437,0.83472,111700.0,111690.0,0.8483245]
[1756253106827,0.003,111700.0,111690.0,0.8483245]
[1756253107027,0.8352,111700.0,111690.0,0.8483245]
[1756253107435,0.9277171,111700.0,111690.0,0.7588]
[1756253107636,0.9265171,111700.0,111690.0,0.7588]
[1756253107835,0.8382,111700.0,111690.0,0.8483251]
[1756253108036,0.002,111700.0,111690.0,0.8483251]
[1756253108237,0.8384,111700.0,111690.0,0.8483251]
[1756253108437,0.83832,111700.0,111690.0,0.5983251]
[1756253108637,0.002,111700.0,111690.0,0.8483251]
[1756253108938,0.83924,111700.0,111690.0,0.8483251]
[1756253109136,0.003,111700.0,111690.0,0.8483251]
[1756253109336,0.83728,111700.0,111690.0,0.8483251]
[1756253109536,0.83628,111700.0,111690.0,0.8483251]
[1756253109738,0.11050937,111710.0,111690.0,0.8483251]
[1756253110043,0.11209937,111710.0,111700.0,0.14819]
[1756253110241,0.94813937,111710.0,111700.0,0.14819]
[1756253110545,0.11209937,111710.0,111700.0,0.14819]
[1756253110744,0.94714937,111710.0,111700.0,0.2377072]
[1756253110937,0.02000527,111710.0,111700.0,0.5985072]
[1756253111143,0.85588527,111710.0,111700.0,0.5985072]
[1756253111445,0.02000527,111710.0,111700.0,0.8485072]
[1756253111637,0.85644527,111710.0,111700.0,0.8485072]
[1756253112241,0.85844527,111710.0,111700.0,0.8485072]
[1756253112842,0.85644527,111710.0,111700.0,0.8485072]
[1756253113140,0.85644527,111710.0,111700.0,0.8505072]
[1756253113540,0.02000527,111710.0,111700.0,0.8505072]
[1756253113746,0.85628527,111710.0,111700.0,0.8505072]
[1756253113942,0.02000527,111710.0,111700.0,0.8505072]
[1756253114145,0.85604527,111710.0,111700.0,0.8505072]
[1756253115748,0.02000527,111710.0,111700.0,0.8505072]
[1756253116046,0.85596527,111710.0,111700.0,0.8505072]
[1756253116449,0.02000527,111710.0,111700.0,1.2113072]
[1756253116747,0.85548527,111710.0,111700.0,1.2113072]
[1756253117448,0.02000527,111710.0,111700.0,1.2113072]
[1756253117749,0.85524527,111710.0,111700.0,1.2113072]
[1756253121752,0.02000527,111710.0,111700.0,1.2113072]
[1756253121954,0.85484527,111710.0,111700.0,1.2113072]
[1756253124153,0.02000527,111710.0,111700.0,1.2113072]
[1756253124353,0.85384527,111710.0,111700.0,1.2113072]
[1756253124950,1.81185776,111730.0,111720.0,0.0894993]
[1756253125152,2.6273955,111730.0,111720.0,0.5984893]
[1756253125355,2.6274355,111730.0,111720.0,0.5984893]
[1756253126357,2.6294355,111730.0,111720.0,0.5984893]
[1756253126757,2.6304355,111730.0,111720.0,0.5984893]
[1756253127057,2.6305955,111730.0,111720.0,0.5984893]
[1756253127859,2.5407,111730.0,111720.0,0.9592893]
[1756253128248,1.70714,111730.0,111720.0,0.9592893]
[1756253128449,2.54054,111730.0,111720.0,0.9592893]
[1756253129060,2.5409,111730.0,111720.0,0.9592893]
[1756253129364,2.53878,111730.0,111720.0,0.9592893]
[1756253129653,2.53778,111730.0,111720.0,0.9592893]
[1756253130462,2.53766,111730.0,111720.0,0.9592893]
[1756253130959,2.53758,111730.0,111720.0,0.9592893]
[1756253131158,0.00258,111730.0,111720.0,0.9592893]
[1756253131364,0.00258,111740.0,111730.0,0.237675]
[1756253131553,0.36114,111740.0,111730.0,0.598475]
[1756253132158,0.4506237,111740.0,111730.0,0.598475]
[1756253132362,0.9253437,111740.0,111730.0,0.598475]
[1756253132761,0.9283437,111740.0,111730.0,0.598475]
[1756253138767,0.00558,111740.0,111730.0,0.598475]
[1756253139273,0.83754,111740.0,111730.0,0.598475]
[1756253140574,0.9260222,111740.0,111730.0,0.598475]
[1756253140773,0.9240222,111740.0,111730.0,0.598475]
[1756253142574,0.0920622,111740.0,111730.0,0.598475]
[1756253142774,0.9237422,111740.0,111730.0,0.598475]
[1756253143770,1.19392184,111740.0,111730.0,0.38803]
[1756253143967,0.0894991,111720.0,111710.0,0.4781036]
[1756253144169,0.94136192,111720.0,111710.0,0.3608]
[1756253144369,1.19136192,111720.0,111710.0,0.3608]
[1756253144575,1.19136192,111720.0,111710.0,0.3886]
[1756253145175,0.0895071,111710.0,111700.0,0.40671]
[1756253146979,0.0945071,111710.0,111700.0,0.42819]
[1756253147175,0.0945071,111710.0,111700.0,0.46163]
[1756253147377,0.0945071,111710.0,111700.0,0.50722]
[1756253147578,0.0945071,111710.0,111700.0,0.5967353]
[1756253148885,0.9262271,111710.0,111700.0,0.5967353]
[1756253149683,0.9262271,111710.0,111700.0,0.50722]
[1756253150185,0.9262271,111710.0,111700.0,0.47378]
[1756253150380,1.2870271,111710.0,111700.0,0.08615]
[1756253150585,1.2870271,111710.0,111700.0,0.14642]
[1756253150884,1.2870271,111710.0,111700.0,0.11959]
[1756253151094,1.5370271,111710.0,111700.0,0.0278]
[1756253152084,0.7053071,111710.0,111700.0,0.0278]
[1756253152284,1.5370671,111710.0,111700.0,0.0278]
[1756253152785,1.5370671,111710.0,111700.0,0.04591]
[1756253153084,1.5370671,111710.0,111700.0,0.06739]
[1756253153787,1.1712671,111710.0,111700.0,0.06739]
[1756253159988,1.1733171,111710.0,111700.0,0.06739]
[1756253163586,1.1733171,111710.0,111700.0,0.14642]
[1756253164191,0.3415571,111710.0,111700.0,0.14642]
[1756253164392,1.1733171,111710.0,111700.0,0.14642]
[1756253164791,1.1733171,111710.0,111700.0,0.50722]
[1756253165291,0.0895071,111710.0,111700.0,0.8467356]
[1756253165487,0.0915552,111720.0,111710.0,0.14642]
[1756253165791,0.9232752,111720.0,111710.0,0.50722]
[1756253166092,0.9232752,111720.0,111710.0,0.5967277]
[1756253166592,0.9262752,111720.0,111710.0,0.5967277]
[1756253167694,0.9263152,111720.0,111710.0,0.5967277]
[1756253168092,0.9283152,111720.0,111710.0,0.5967277]
[1756253168489,0.0965552,111720.0,111710.0,0.5967277]
[1756253168689,0.9282752,111720.0,111710.0,0.5967277]
[1756253170384,0.9282352,111720.0,111710.0,0.5967277]
[1756253173098,0.0965552,111720.0,111710.0,0.5967277]
[1756253173296,0.9281952,111720.0,111710.0,0.5967277]
[1756253174197,0.9281952,111720.0,111710.0,0.50722]
[1756253174701,0.9281952,111720.0,111710.0,0.5967279]
[1756253175394,0.9281952,111720.0,111710.0,0.4781079]
[1756253175704,0.0909579,111710.0,111700.0,0.02763]
[1756253175891,0.0909579,111710.0,111700.0,0.0451]
[1756253176091,0.0909579,111710.0,111700.0,0.08614]
[1756253176398,0.0909579,111710.0,111700.0,0.14768]
[1756253177100,0.0919579,111710.0,111700.0,0.14768]
[1756253177900,0.0939579,111710.0,111700.0,0.14768]
[1756253179003,0.0939579,111710.0,111700.0,0.08614]
[1756253179301,0.0939579,111710.0,111700.0,0.14768]